[Event "BL 2024-25"]
[Site "Austria"]
[Date "2024.10.13"]
[Round "5.7"]
[White "Gupta, Abhijeet"]
[Black "Kadric, Denis"]
[Result "1/2-1/2"]
[Annotator "TA"]
[ECO "C41"]
[WhiteElo "2573"]
[BlackElo "2558"]
[PlyCount "82"]
[EventDate "2024.08.28"]
[EventType "team-tourn"]
[EventCountry "AUT"]
[SourceTitle "playchess.com"]
[Source "ChessBase"]
[SourceQuality "1"]
[WhiteTeam "Wien-St Veit"]
[BlackTeam "Pinggau-Friedberg"]
[TimeControl "40/5400+30:1800+30"]

{[%evp 9,82,21,15,9,19,19,12,19,16,6,22,0,0,-2,-18,0,0,0,43,37,31,31,32,47,58,38,131,142,139,137,197,172,170,133,148,166,272,153,140,129,148,0,0,0,0,0,0,0,0,0,0,0,0,0,8,0,0,0,0,0,0,0,5,6,8,7,8,0,24,10,10,8,19,8,24]} 1. d4 {[%emt 0:00:04]} d6 {[%emt 0:00:05]} 2. e4 {[%emt 0:00:08]} Nf6 {[%emt 0:00:02]} 3. Nc3 {[%emt 0:00:06]} e5 {[%emt 0:00:02]} 4. Nf3 {[%emt 0:00:16]} Nbd7 {[%emt 0:00:03]} 5. Rg1 {[%emt 0:00:15]} c6 {[%emt 0:00:08]} 6. g4 {[%emt 0:00:27]} h6 {[%emt 0:00:02]} 7. Be3 {[%emt 0:01:08]} Be7 {[%emt 0:00:07]} 8. a3 {[%emt 0:02:41]} Qa5 {[%emt 0:00:19]} 9. Nd2 {[%emt 0:06:09]} Nf8 {[%emt 0:01:13]} 10. h4 {[%emt 0:08:35]} h5 {[%emt 0:00:39]} 11. gxh5 {[%emt 0:00:40]} exd4 {[%emt 0:10:21]} 12. Nc4 {[%emt 0:02:57]} Qxh5 {[%emt 0:00:06]} 13. Qxd4 {[%emt 0:04:29]} d5 {[%emt 0:05:34]} 14. exd5 {[%emt 0:01:33]} cxd5 {[%emt 0:01:07] And now ...Ne6 would win.} 15. Rg5 {[%emt 0:21:42]} Qxh4 {[%emt 0:00:20]} 16. Qxh4 {[%emt 0:00:39]} Rxh4 {[%emt 0:00:03]} 17. Nxd5 {[%emt 0:00:04]} Ne6 {[%emt 0:20:58] [#] Dodges Nc7+} (17... Nxd5 $14 18. Rxd5 Ng6) 18. Nxe7 $1 $16 {[%emt 0:47:37]} Kxe7 {[%emt 0:42:08] [#]} (18... Nxg5 19. Nxc8) 19. Ra5 $36 {[%emt 0:00:40][%mdl 2048] White is really pushing.} a6 {[%emt 0:16:43]} (19... Bd7 $16 {keeps fighting.} 20. O-O-O (20. Rxa7 Rxa7 21. Bxa7 Bb5 $16) (20. Bxa7 Re4+ 21. Kd2 Rd8 $18) 20... Bc6 21. Bxa7 Rd8) 20. Nb6 {[%emt 0:44:03]} Rb8 {[%emt 0:00:27]} 21. O-O-O {[%emt 0:02:41]} Bd7 {[%emt 0:05:31]} 22. f4 {[%emt 0:11:48] White has more active pieces.} g6 {[%emt 0:02:58]} (22... Bb5 $142) 23. Re5 {[%emt 0:05:47]} (23. f5 $18 gxf5 24. Rxf5 (24. Nxd7 Nxd7 25. Rxf5 Rg8 $18)) 23... Bc6 {[%emt 0:03:17] [#]} 24. Bc5+ $1 {[%emt 0:09:06]} Ke8 {[%emt 0:00:01][%cal Oh4h1,Be7e8,Be8f8,Bf8g7][%mdl 32]} 25. Nc4 {[%emt 0:04:52]} (25. Bc4 $16 {Strongly threatening Rde1.} Rd8 26. Rde1) 25... Nd7 $1 $11 {[%emt 0:07:27][%cal Od7e5,Bf6d7,Bd7c5,Bc5a4][%mdl 32]} 26. Nd6+ {[%emt 0:03:56]} Kf8 {[%emt 0:00:01]} 27. Rxe6 {[%emt 0:02:55]} fxe6 {[%emt 0:00:03]} 28. Nf5+ {[%emt 0:00:25]} Nxc5 {[%emt 0:00:03]} 29. Nxh4 {[%emt 0:00:02][%cal Bf5h4,Bh4g2,Bg2f4][%mdl 32]} Kg7 {[%emt 0:01:39]} 30. Bg2 {[%emt 0:00:15]} Bxg2 {[%emt 0:02:38]} 31. Nxg2 {[%emt 0:00:03][%mdl 4096] Endgame. KRN-KRN} Rf8 {[%emt 0:00:04]} 32. b4 {[%emt 0:01:28]} Na4 {[%emt 0:01:08]} 33. c4 {[%emt 0:00:58]} Nb6 {[%emt 0:00:43] Inhibits Rd7+.} 34. Rd4 {[%emt 0:01:27]} e5 {[%emt 0:04:21]} 35. Re4 {[%emt 0:00:18]} exf4 {[%emt 0:00:34]} 36. Nxf4 {[%emt 0:00:10] Hoping for Ne6+.} Kf7 {[%emt 0:00:25]} 37. Rd4 {[%emt 0:02:13]} g5 {[%emt 0:00:41]} 38. Nd3 {[%emt 0:00:31]} Kg6 {[%emt 0:00:31]} 39. c5 {[%emt 0:00:26]} Nc8 {[%emt 0:00:21] Inhibits Rd6+. The position is equal.} 40. Kd2 {[%emt 0:00:19]} Re8 {[%emt 0:00:34]} 41. a4 {[%emt 0:03:20]} Re7 {[%emt 0:01:05] White really could win this.   Weighted Error Value: White=0.18 (very precise) /Black=0.13 (very precise) .  Mistake:       	White=2     	Black=3      Inaccurate:     	---       	Black=1      OK:         	White=17    	Black=14     Best:        	White=1     	Black=3      Strong:       	White=1     	Black=1} 1/2-1/2

[Event "BL 2024-25"]
[Site "Austria"]
[Date "2024.10.13"]
[Round "5.8"]
[White "Petrov, Nikita"]
[Black "Solodovnichenko, Yuri"]
[Result "0-1"]
[Annotator "TA"]
[ECO "D40"]
[WhiteElo "2589"]
[BlackElo "2497"]
[PlyCount "64"]
[EventDate "2024.08.28"]
[EventType "team-tourn"]
[EventCountry "AUT"]
[SourceTitle "playchess.com"]
[Source "ChessBase"]
[SourceQuality "1"]
[WhiteTeam "Pinggau-Friedberg"]
[BlackTeam "Wien-St Veit"]
[TimeControl "40/5400+30:1800+30"]

{[%evp 18,64,15,0,8,-7,0,-54,-60,-62,-96,-187,-174,-194,-208,-220,-217,-212,-217,-224,-232,-231,-235,-239,-234,-243,-257,-253,-250,-399,-400,-408,-402,-402,-409,-403,-293,-728,-718,-795,-784,-925,-892,-10081,-5381,-29984,-29985,-29984,-29984]} 1. Nf3 {[%emt 0:00:04]} d5 {[%emt 0:00:06]} 2. c4 {[%emt 0:00:06]} e6 {[%emt 0:01:13]} 3. d4 {[%emt 0:00:15]} dxc4 {[%emt 0:00:32]} 4. e3 {[%emt 0:01:23]} c5 {[%emt 0:00:39]} 5. Bxc4 {[%emt 0:01:02]} Nf6 {[%emt 0:00:11]} 6. O-O {[%emt 0:03:30]} Nc6 {[%emt 0:02:01]} 7. Nc3 {[%emt 0:00:56]} a6 {[%emt 0:00:08]} 8. a3 {[%emt 0:03:47]} b5 {[%emt 0:03:18]} 9. Ba2 {[%emt 0:01:36]} Bb7 {[%emt 0:00:18]} 10. Qe2 {[%emt 0:00:45]} Qc7 {[%emt 0:11:27]} 11. d5 {[%emt 0:06:02]} exd5 {[%emt 0:04:22]} 12. e4 {[%emt 0:05:22]} (12. Nxd5 $11 Nxd5 13. Bxd5) 12... dxe4 $15 {[%emt 0:03:41] Black is slightly better.} 13. Nxe4 {[%emt 0:02:25]} O-O-O {[%emt 0:05:51]} 14. Ng3 {[%emt 0:08:39]} (14. Nxf6 $17 gxf6 15. Be3) 14... h5 $19 {[%emt 0:26:00]} 15. Bg5 {[%emt 0:09:51] [#]} h4 $1 {[%emt 0:00:25][%mdl 512]} 16. Bxh4 {[%emt 0:00:59] [#]} (16. Nf5 h3) 16... Rxh4 {[%emt 0:12:57][%mdl 512]} 17. Nxh4 {[%emt 0:00:10]} Nd4 {[%emt 0:00:02] Wards off Nf3} 18. Qe3 {[%emt 0:02:39]} Nc2 {[%emt 0:01:07][%csl LRa1,LRe3]} 19. Qg5 {[%emt 0:01:07] Hoping for Qf5+.} Nxa1 {[%emt 0:00:08]} 20. Rxa1 {[%emt 0:00:02]} c4 {[%emt 0:00:57] ...Rd5 is the strong threat.} 21. Re1 {[%emt 0:10:59]} Qc5 {[%emt 0:25:37]} 22. Qc1 {[%emt 0:04:15]} g6 {[%emt 0:00:00]} 23. Bb1 {[%emt 0:03:11]} (23. Nf3 $142) 23... Qd4 {[%emt 0:00:00]} 24. Nf3 {[%emt 0:00:24]} Bxf3 {[%emt 0:00:00]} 25. gxf3 {[%emt 0:00:04]} Bc5 {[%emt 0:00:00]} 26. Qc2 {[%emt 0:07:57]} Qf4 {[%emt 0:00:00][%cal Od8d2] Strongly threatening ...Rd2!} 27. Qc3 {[%emt 0:04:43]} (27. Rd1) 27... Rd2 {[%emt 0:00:00]} 28. Re2 {[%emt 0:08:41]} Rd1+ {[%emt 0:00:00]} 29. Re1 {[%emt 0:00:08]} Bd4 {[%emt 0:00:05]} 30. Qa5 {[%emt 0:00:42]} Qxf3 {[%emt 0:02:45]} 31. Qxa6+ {[%emt 0:01:33]} Kc7 {[%emt 0:00:11]} 32. Qa5+ {[%emt 0:01:04]} Bb6 {[%emt 0:00:14] White did not feel at home in the position after the opening.   Weighted Error Value: White=0.92/Black=0.06 (flawless) .  Mistake:       	White=4     	---        OK:         	White=6     	Black=9      Best:        	---       	Black=5} 0-1

[Event "BL 2024-25"]
[Site "Austria"]
[Date "2024.10.13"]
[Round "5.9"]
[White "Koellner, Ruben Gideon"]
[Black "Erdos, Viktor"]
[Result "1/2-1/2"]
[Annotator "TA"]
[ECO "D02"]
[WhiteElo "2480"]
[BlackElo "2538"]
[PlyCount "78"]
[EventDate "2024.08.28"]
[EventType "team-tourn"]
[EventCountry "AUT"]
[SourceTitle "playchess.com"]
[Source "ChessBase"]
[SourceQuality "1"]
[WhiteTeam "Wien-St Veit"]
[BlackTeam "Pinggau-Friedberg"]
[TimeControl "40/5400+30:1800+30"]

{[%evp 9,78,13,20,2,5,14,15,0,0,0,0,11,10,8,2,0,0,-20,-23,-12,-35,-26,-29,-35,-39,-23,-21,-27,0,0,0,0,0,-5,-4,-4,0,-12,-20,-12,0,-11,-15,-17,-24,-18,-11,-25,-10,-27,0,-23,-12,-115,0,0,0,0,0,0,0,0,0,0,0,0,0,0,0,0,0]} 1. d4 {[%emt 0:00:03]} Nf6 {[%emt 0:00:05]} 2. Nf3 {[%emt 0:00:07]} g6 {[%emt 0:00:11]} 3. Nbd2 {[%emt 0:00:05]} d5 {[%emt 0:00:09]} 4. e3 {[%emt 0:00:06]} Bg7 {[%emt 0:00:43]} 5. b4 {[%emt 0:00:06]} a5 {[%emt 0:00:47]} 6. b5 {[%emt 0:00:07]} c5 {[%emt 0:00:12]} 7. bxc6 {[%emt 0:00:05]} Nxc6 {[%emt 0:00:05]} 8. a4 {[%emt 0:00:30]} O-O {[%emt 0:00:07]} 9. Ba3 {[%emt 0:00:20]} Bf5 {[%emt 0:17:42]} 10. c3 {[%emt 0:00:08] Dodges Nb4} Qc7 {[%emt 0:00:06]} 11. Qb3 {[%emt 0:01:15]} Rfc8 {[%emt 0:01:08]} 12. Be2 {[%emt 0:00:18]} e5 {[%emt 0:00:25]} 13. h3 {[%emt 0:04:44]} exd4 {[%emt 0:16:55]} 14. cxd4 {[%emt 0:04:02]} Bf8 {[%emt 0:05:09]} 15. Rc1 {[%emt 0:10:32]} Bxa3 {[%emt 0:08:12]} 16. Qxa3 {[%emt 0:00:02]} Qd8 {[%emt 0:00:10]} 17. O-O {[%emt 0:00:33]} Nb4 {[%emt 0:00:06]} 18. Ne5 {[%emt 0:01:20]} Nd7 {[%emt 0:12:49]} 19. Nxd7 {[%emt 0:04:04]} Qxd7 {[%emt 0:05:48]} 20. Bb5 {[%emt 0:04:06]} Qd8 {[%emt 0:00:23]} 21. Rxc8 {[%emt 0:06:34]} Rxc8 {[%emt 0:00:11]} 22. Rc1 {[%emt 0:00:09]} Bc2 {[%emt 0:03:14]} 23. Nf3 {[%emt 0:01:12]} Rc7 {[%emt 0:00:10]} 24. Ne1 {[%emt 0:04:14]} Qc8 {[%emt 0:00:21]} 25. Qb2 {[%emt 0:01:31]} Be4 {[%emt 0:02:06]} 26. Rxc7 {[%emt 0:00:09]} Qxc7 {[%emt 0:00:03]} 27. Qd2 {[%emt 0:01:58]} Kg7 {[%emt 0:00:47]} 28. Qb2 {[%emt 0:02:24]} Kf8 {[%emt 0:05:46]} 29. Qa3 {[%emt 0:00:35]} Kg7 {[%emt 0:00:11]} 30. Qb2 {[%emt 0:00:08]} Bf5 {[%emt 0:07:10]} 31. Nf3 {[%emt 0:02:22]} (31. g4 $11 {remains equal.} Bd7 32. Bxd7 Qxd7 33. Qc1) 31... Bd7 {[%emt 0:02:14]} (31... Qc2 $17 32. Qxc2 Bxc2) 32. Bxd7 $11 {[%emt 0:07:21] The position is equal.} Qxd7 {[%emt 0:00:02][%mdl 4096] Endgame. KQN-KQN} 33. Qc3 {[%emt 0:00:50]} Qxa4 {[%emt 0:05:11] [#] ...Qd1+ is the strong threat.} 34. Qc7 {[%emt 0:00:08][%cal Of3e5]} Qc6 {[%emt 0:00:47]} 35. Qxa5 {[%emt 0:00:11]} Nd3 {[%emt 0:00:05]} 36. Ne5 {[%emt 0:02:52] Inhibits b5.} Nxe5 {[%emt 0:00:56]} 37. dxe5 {[%emt 0:00:04]} b6 {[%emt 0:03:05]} 38. Qb4 {[%emt 0:01:53]} Qc5 {[%emt 0:03:15]} 39. Qh4 {[%emt 0:00:16]} Qc6 {[%emt 0:00:29] Weighted Error Value: White=0.09 (flawless) /Black=0.07 (flawless) .  Mistake:       	White=1     	Black=1      Inaccurate:     	---       	Black=1      OK:         	White=13    	Black=15} 1/2-1/2

[Event "BL 2024-25"]
[Site "Austria"]
[Date "2024.10.13"]
[Round "5.10"]
[White "Sankalp Gupta"]
[Black "Antoniewski, Rafal"]
[Result "1-0"]
[Annotator "TA"]
[ECO "D02"]
[WhiteElo "2534"]
[BlackElo "2443"]
[PlyCount "80"]
[EventDate "2024.08.28"]
[EventType "team-tourn"]
[EventCountry "AUT"]
[SourceTitle "playchess.com"]
[Source "ChessBase"]
[SourceQuality "1"]
[WhiteTeam "Pinggau-Friedberg"]
[BlackTeam "Wien-St Veit"]
[TimeControl "40/5400+30:1800+30"]

{[%evp 10,80,0,0,0,-5,32,31,21,10,8,-7,22,32,87,75,70,59,64,60,57,58,68,85,109,113,129,128,127,126,122,86,153,99,93,112,104,83,102,97,103,91,118,112,125,146,164,186,181,81,90,43,56,49,64,0,96,88,91,84,109,110,113,100,104,0,121,135,116,124,170,13,21]} 1. d4 {[%emt 0:00:08]} Nf6 {[%emt 0:00:28]} 2. Bf4 {[%emt 0:00:21]} d5 {[%emt 0:03:34]} 3. Nf3 {[%emt 0:00:59]} e6 {[%emt 0:04:18]} 4. e3 {[%emt 0:00:27]} Bd6 {[%emt 0:00:06]} 5. Ne5 {[%emt 0:01:35]} O-O {[%emt 0:00:40]} 6. Nd2 {[%emt 0:01:30]} b6 {[%emt 0:00:06]} 7. c3 {[%emt 1:29:00]} Ba6 {[%emt 0:02:12]} 8. Bxa6 {[%emt 0:01:53]} Nxa6 {[%emt 0:00:05] White is slightly better.} 9. Qf3 {[%emt 0:00:05]} Nd7 {[%emt 0:12:33]} 10. Qg3 {[%emt 0:06:18]} Nab8 {[%emt 0:08:13]} (10... Bxe5 {simplifies} 11. Bxe5 Nxe5 12. Qxe5 c5) 11. O-O {[%emt 0:06:29]} f6 {[%emt 0:01:47]} ({Black should try} 11... Re8 $14) 12. Nd3 $16 {[%emt 0:02:26]} Qe7 {[%emt 0:06:07]} 13. e4 {[%emt 0:03:28] Hoping for e5.} e5 {[%emt 0:01:51]} 14. dxe5 {[%emt 0:01:02]} fxe5 {[%emt 0:00:05]} 15. Bg5 {[%emt 0:00:40]} Qe8 {[%emt 0:05:13]} 16. Rae1 {[%emt 1:05:21]} (16. exd5 $2 e4 17. Bf4 (17. Nf4 Qf7 $17) 17... exd3 18. Bxd6 cxd6 19. Qxd3 Nf6 $19) 16... dxe4 {[%emt 0:07:35]} 17. Nxe4 {[%emt 0:01:44]} Nc6 {[%emt 0:01:45]} 18. Qg4 {[%emt 0:06:11] Prevents Qe6. Strongly threatening Nxd6.} Kh8 {[%emt 0:02:03]} 19. f4 {[%emt 0:00:43]} Be7 {[%emt 0:03:23]} 20. f5 {[%emt 0:14:52]} Rd8 {[%emt 0:00:28]} (20... Nf6 $142 21. Bxf6 gxf6) 21. Rf3 {[%emt 0:00:59]} (21. Qh3 $142) 21... Nf6 {[%emt 0:01:19]} 22. Bxf6 {[%emt 0:05:46]} gxf6 {[%emt 0:00:39]} 23. Rh3 {[%emt 0:02:30][%cal Oh3h7] White wants to mate with Rxh7+!} Rg8 {[%emt 0:01:54]} 24. Qf3 {[%emt 0:04:40][%cal Od3f4] And now Nf4! would win.} Qf7 {[%emt 0:02:25]} 25. b3 {[%emt 0:04:26]} Rg7 {[%emt 0:02:06]} 26. Ndf2 {[%emt 0:00:47]} b5 {[%emt 0:12:13]} 27. Rh6 {[%emt 0:02:41] aiming for Ng4.} Rdg8 {[%emt 0:03:23] [#]} 28. g3 {[%emt 0:03:07][%cal Oe4f6] Threatens to win with Nxf6!} Qf8 {[%emt 0:09:34] [#]} 29. b4 {[%emt 0:00:57]} (29. Qh5 $1 $18 {is more deadly.}) 29... Nd8 {[%emt 0:01:33][%cal Bc6d8,Bd8b7,Bb7d6,Bd6c8][%mdl 32]} 30. Qe3 {[%emt 0:02:56]} (30. Qh5 $16) 30... a6 {[%emt 0:01:57]} 31. Rd1 {[%emt 0:00:57]} Nb7 $1 {[%emt 0:00:46]} 32. Rd7 {[%emt 0:04:20]} (32. Rd5 $14) 32... Qc8 {[%emt 0:01:16] [#]} (32... Nd6 $11 {keeps the balance.} 33. Nxd6 (33. Rxc7 $2 {loses.} Nxf5 34. Qe1 Nxh6 $19) 33... cxd6) 33. Rxe7 $1 {[%emt 0:01:09]} Rxe7 {[%emt 0:00:07]} 34. Nxf6 {[%emt 0:00:03]} ({But not} 34. Rxf6 Qd7 $11) 34... Qxf5 {[%emt 0:01:47]} 35. Nxg8 {[%emt 0:00:08]} Kxg8 {[%emt 0:00:05]} 36. Rxa6 {[%emt 0:03:33]} Nd6 {[%emt 0:00:13]} 37. Qh6 {[%emt 0:02:26]} ({White should play} 37. Qe2 $16) 37... Rf7 {[%emt 0:03:18]} (37... Qf3 $11) 38. Ra8+ {[%emt 0:00:07]} Nc8 {[%emt 0:00:03]} 39. Qe3 {[%emt 0:00:36] g4 is the strong threat. Dancing on a razor blade.} h5 {[%emt 0:00:15]} (39... Rf8 $16 40. Rb8 c6) 40. h4 $2 {[%emt 0:01:38] Active counter play!} (40. Rb8 $18 c6 41. Qe2) 40... Kg7 {[%emt 0:01:48][%mdl 32768] Weighted Error Value: White=0.21 (precise) /Black=0.24 (precise) .  Mistake:       	White=6     	Black=5      Inaccurate:     	---       	Black=2      OK:         	White=13    	Black=6      Best:        	White=3     	Black=3      Strong:       	---       	Black=1      Brilliant:      	White=1     	---       . Sensor Board Error (Ke4/e5)?} 1-0

[Event "BL 2024-25"]
[Site "Austria"]
[Date "2024.10.13"]
[Round "5.11"]
[White "Kuegel, Tobias"]
[Black "Perunovic, Milos"]
[Result "1-0"]
[Annotator "TA"]
[ECO "B45"]
[WhiteElo "2428"]
[BlackElo "2525"]
[PlyCount "77"]
[EventDate "2024.08.28"]
[EventType "team-tourn"]
[EventCountry "AUT"]
[SourceTitle "playchess.com"]
[Source "ChessBase"]
[SourceQuality "1"]
[WhiteTeam "Wien-St Veit"]
[BlackTeam "Pinggau-Friedberg"]
[TimeControl "40/5400+30:1800+30"]

{[%evp 11,77,43,19,27,27,20,24,28,24,28,41,47,52,38,52,40,50,26,47,45,62,20,67,75,97,64,95,104,101,104,112,93,123,121,127,116,111,27,37,26,31,14,77,0,12,0,16,22,10,16,10,16,38,35,187,155,205,190,202,197,209,215,864,857,855,855,792,737]} 1. e4 {[%emt 0:00:02]} c5 {[%emt 0:00:18]} 2. Nf3 {[%emt 0:00:14][%cal Bg1f3,Bf3d4,Bd4b5,Bb5d6][%mdl 32]} e6 {[%emt 0:00:33]} 3. d4 {[%emt 0:00:29]} cxd4 {[%emt 0:00:08]} 4. Nxd4 {[%emt 0:00:10]} Nf6 {[%emt 0:01:45]} 5. Nc3 {[%emt 0:02:58]} Nc6 {[%emt 0:00:17]} 6. Ndb5 {[%emt 0:00:26]} Bc5 {[%emt 0:03:07]} 7. Nd6+ {[%emt 0:00:47]} Ke7 {[%emt 0:00:08]} 8. Bf4 {[%emt 0:00:09]} e5 $1 {[%emt 0:01:36]} 9. Nf5+ {[%emt 0:03:14] White has an edge.} Kf8 {[%emt 0:00:09]} 10. Bg5 {[%emt 0:00:06]} h6 {[%emt 0:08:49]} 11. Bxf6 {[%emt 0:01:11]} Qxf6 {[%emt 1:19:10]} 12. Bc4 {[%emt 0:01:28]} d6 {[%emt 0:13:28]} 13. Ne3 {[%emt 1:25:46]} g6 {[%emt 0:07:39]} 14. Qd2 {[%emt 0:04:00]} Kg7 {[%emt 0:09:14]} 15. O-O-O {[%emt 0:00:34]} Be6 {[%emt 0:12:36] [#] Hoping for ...Bxe3.} 16. Bb3 {[%emt 1:18:31]} Nd4 {[%emt 0:05:48]} (16... Qf4 $11 {is superior.}) 17. Bxe6 $14 {[%emt 0:13:06]} Nxe6 {[%emt 0:07:05]} 18. Rhf1 {[%emt 0:06:46]} Qf4 {[%emt 0:08:28][%cal Oc5d4]} 19. g3 {[%emt 0:30:46]} Qf3 {[%emt 0:00:52]} 20. Qd3 {[%emt 0:00:02][%cal Oe3f5]} Kh7 {[%emt 0:05:12]} 21. Ned5 {[%emt 0:11:06]} Qxd3 {[%emt 0:02:12]} 22. Rxd3 {[%emt 0:00:02]} f5 {[%emt 0:02:31]} 23. f4 {[%emt 0:04:21]} Rhf8 {[%emt 0:01:46]} 24. Rdf3 {[%emt 0:04:14]} (24. Re1 $16) 24... exf4 $11 {[%emt 0:02:01]} 25. gxf4 {[%emt 0:02:26]} Rae8 {[%emt 0:00:48]} 26. Re1 {[%emt 0:02:53] b4 would now be deadly.} Kg7 {[%emt 0:01:36] [#]} (26... fxe4 $11 27. Nxe4 Kg7) 27. Kd1 {[%emt 0:01:30]} ({White should play} 27. b4 $1 $16 {[%cal Rb4c5]} fxe4 28. Nxe4) 27... a6 {[%emt 0:00:43]} 28. a3 {[%emt 0:01:06]} Nd4 {[%emt 0:02:22]} 29. Rg3 {[%emt 0:01:42]} Ne6 {[%emt 0:03:41] Against Nc7} 30. Rg2 {[%emt 0:01:48] Inhibits Bf2.} fxe4 {[%emt 0:01:02]} 31. Rxe4 {[%emt 0:00:32]} Nd4 {[%emt 0:00:13]} 32. Ne7 {[%emt 0:00:59] A dynamic duo of knights.} g5 {[%emt 0:00:48] A mistake that costs the game.} 33. Ncd5 {[%emt 0:01:21][%cal Od5c7] Nc7! is the strong threat.} Kh7 {[%emt 0:01:09]} (33... Nc6 $16 {was called for.}) 34. b4 $18 {[%emt 0:00:23]} Ba7 {[%emt 0:00:08]} 35. fxg5 {[%emt 0:00:26]} Rf1+ {[%emt 0:00:06]} 36. Re1 {[%emt 0:00:31]} Ref8 $2 {[%emt 0:01:33]} (36... Rxe1+ 37. Kxe1 Rf8 38. g6+ Kg7) 37. Nf6+ {[%emt 0:00:28] White is clearly winning.} R8xf6 {[%emt 0:00:26]} 38. gxf6 {[%emt 0:00:10]} Rxf6 {[%emt 0:00:02]} 39. Nc8 {[%emt 0:00:38] Weighted Error Value: White=0.14 (very precise) /Black=0.20 (precise) .  Mistake:       	White=2     	Black=5      Inaccurate:     	White=2     	Black=1      OK:         	White=10    	Black=8      Best:        	White=4     	Black=2      Strong:       	---       	Black=1} 1-0

[Event "BL 2024-25"]
[Site "Austria"]
[Date "2024.10.13"]
[Round "5.12"]
[White "Ivanisevic, Ivan"]
[Black "Schachinger, Mario"]
[Result "1-0"]
[Annotator "TA"]
[ECO "A36"]
[WhiteElo "2519"]
[BlackElo "2385"]
[PlyCount "65"]
[EventDate "2024.08.28"]
[EventType "team-tourn"]
[EventCountry "AUT"]
[SourceTitle "playchess.com"]
[Source "ChessBase"]
[SourceQuality "1"]
[WhiteTeam "Pinggau-Friedberg"]
[BlackTeam "Wien-St Veit"]
[TimeControl "40/5400+30:1800+30"]

{[%evp 9,65,9,10,-10,-4,-12,-7,-25,-27,-35,-40,-45,9,-7,-4,-4,-14,-14,106,50,120,92,112,106,125,98,83,77,270,247,287,283,400,410,365,370,345,244,329,334,328,263,239,198,479,459,563,518,480,294,288,279,254,275,396,390,365,374]} 1. c4 Nf6 {[%emt 1:31:00]} 2. Nc3 c5 {[%emt 0:00:30]} 3. g3 g6 {[%emt 0:00:30]} 4. Bg2 Bg7 {[%emt 0:00:30]} 5. d3 Nc6 {[%emt 0:00:30]} 6. Qd2 O-O {[%emt 0:00:30]} 7. b3 e6 {[%emt 0:00:30]} 8. Bxc6 {The position is equal.} bxc6 {[%emt 0:00:30]} 9. Bb2 e5 {[%emt 0:00:30]} 10. e4 Ne8 {[%emt 0:00:30]} (10... d6 $15) 11. h4 Nc7 {[%emt 0:00:30]} 12. f3 {[%cal Bf2f3,Bf3f4][%mdl 32]} d6 {[%emt 0:00:30]} 13. h5 f5 {[%emt 0:00:30]} (13... Rb8 $11 {remains equal.}) 14. O-O-O (14. hxg6 $16 hxg6 15. O-O-O) 14... Ne6 {[%emt 0:00:30]} ({Better is} 14... g5 $14) 15. hxg6 $16 hxg6 {[%emt 0:00:30] [#]} 16. f4 $1 Nd4 {[%emt 0:00:30] Inhibits Nf3.} 17. Nh3 {[%cal Bg1h3,Bh3g5,Bg5e6][%mdl 32]} fxe4 {[%emt 0:00:30]} 18. Nxe4 {Nhg5 would now be deadly.} Bg4 $2 {[%emt 0:00:30] [#] A mistake that costs the game.} (18... Bxh3 $16 19. Rxh3 d5 20. Bxd4 (20. Nxc5 Qd6 $16) 20... cxd4) 19. Bxd4 $1 $18 cxd4 {[%emt 0:00:30]} (19... d5 20. Bxc5) 20. Nhg5 {[%cal Od2h2] aiming for Qh2!} d5 {[%emt 0:00:30] [#]} (20... Qd7 $142 21. Rdg1 (21. Qh2 Bh5 $18) 21... exf4 22. gxf4 Rae8) 21. Qh2 $1 Bh5 {[%emt 0:00:30]} 22. Ne6 {[%csl LRd8,LRf8]} Qe7 {[%emt 0:00:30]} 23. N4g5 {Excellent horsemanship.} Bh6 {[%emt 0:00:30]} 24. Nxf8 Rxf8 {[%emt 0:00:30]} 25. g4 {[%cal Bg3g4,Bg4h5,Bh5h6][%mdl 32]} Rxf4 {[%emt 0:00:30]} ({But not} 25... Bxg5 $2 26. fxg5 (26. gxh5 $2 Bxf4+ $19) 26... Qxg5+ 27. Rd2 dxc4 28. bxc4 (28. gxh5 c3 $11) (28. dxc4 Qxg4 29. Qxe5 Qf3 $18) 28... Qxg4 29. Rg2 (29. Qxe5 Qf4 $18) 29... Qf4+ 30. Qxf4 exf4 31. Rxh5 $18) 26. gxh5 Qxg5 $2 {[%emt 0:00:30]} (26... Rh4 {was worth a try.} 27. Qc2 (27. Qxh4 Bxg5+ $11) 27... Rxh1 28. Rxh1 Qxg5+ 29. Kb1 gxh5) 27. Kb1 Bg7 {[%emt 0:00:30]} 28. cxd5 cxd5 {[%emt 0:00:30]} 29. h6 Bf8 {[%emt 0:00:30]} 30. h7+ Kh8 {[%emt 0:00:30]} 31. Qh3 Rf5 {[%emt 0:00:30]} (31... Qf5 {might work better.} 32. Qxf5 Rxf5) 32. Rdg1 Qf6 {[%emt 0:00:30]} 33. Qg2 $1 {[%csl LRd5,LRg6] Weighted Error Value: White=0.23 (precise) /Black=0.57.  Loses game:     	---       	Black=1      Mistake:       	White=1     	Black=6      Inaccurate:     	White=1     	Black=1      OK:         	White=8     	Black=6      Best:        	White=3     	Black=3      Strong:       	White=2     	---} 1-0